fUST/lending_fUST_20240813
["ID","MTS","AMOUNT","RATE_DAILY","PERIOD"]
[334739694,1723524561411,-154.74467129,9.999e-05,2]
[334739695,1723524561434,-156.78137498,9.999e-05,2]
[334739696,1723524561472,-189.9631639,9.999e-05,2]
[334739697,1723524561494,-250.59023246,9.999e-05,2]
[334739698,1723524561520,-834.47464547,9.999e-05,2]
[334739700,1723524567216,-9.22548889,9.999e-05,2]
[334739701,1723524567239,-536.09850287,9.999e-05,2]
[334739702,1723524567261,-520.25072733,9.999e-05,2]
[334739703,1723524567281,-155.28160448,9.999e-05,2]
[334739704,1723524567304,-205.42133969,9.999e-05,2]
[334739705,1723524567328,-160.3458083,9.999e-05,2]
[334739706,1723524567350,-210.10628593,9.999e-05,2]
[334739707,1723524567373,-155.42477374,9.999e-05,2]
[334739708,1723524567395,-404.1964714,9.999e-05,2]
[334739709,1723524567418,-850.36837131,9.999e-05,2]
[334739710,1723524567440,-157.14199098,9.999e-05,2]
[334739711,1723524567463,-361.02911147,9.999e-05,2]
[334739712,1723524567484,-180.67948358,9.999e-05,2]
[334739713,1723524567506,-155.09489274,9.999e-05,2]
[334739714,1723524567529,-201.70451665,9.999e-05,2]
[334739715,1723524567551,-494.6780177,9.999e-05,2]
[334739716,1723524567572,-154.74467129,0.0001,2]
[334739717,1723524567598,-250.0,0.0001095,2]
[334739718,1723524567620,-250.0,0.0001098,2]
[334739719,1723524567642,-420.0,0.00010998,2]
[334739720,1723524567664,-250.0,0.0001101,2]
[334739721,1723524567686,-250.0,0.0001104,2]
[334739722,1723524567707,-250.0,0.0001107,2]
[334739723,1723524567731,-250.0,0.000111,2]
[334739724,1723524567754,-250.0,0.0001113,2]
[334739725,1723524567774,-250.0,0.0001116,2]
[334739726,1723524567796,-250.0,0.0001119,2]
[334739727,1723524567817,-250.0,0.0001122,2]
[334739728,1723524567839,-250.0,0.0001125,2]
[334739729,1723524567861,-250.0,0.0001128,2]
[334739730,1723524567882,-24900.0,0.00011295,2]
[334739731,1723524567904,-250.0,0.0001131,2]
[334739732,1723524567925,-250.0,0.0001134,2]
[334739733,1723524567948,-250.0,0.0001137,2]
[334739734,1723524567975,-250.0,0.000114,2]
[334739735,1723524567999,-250.0,0.0001143,2]
[334739736,1723524568021,-250.0,0.0001146,2]
[334739737,1723524568046,-250.0,0.0001149,2]
[334739738,1723524568070,-250.0,0.0001152,2]
[334739739,1723524568090,-340.2144971,0.00011664,2]
[334739740,1723524568112,-587.0,0.00012098,2]
[334739741,1723524568132,-579.2790319,0.00012682,2]
[334739742,1723524568153,-823.0,0.00013307,2]
[334739743,1723524568181,-155.89280773,0.00013589,2]
[334739744,1723524568202,-6960.81251022,0.00013598,2]
[334739745,1723524568222,-155.89280771,0.00013605,2]
[334739746,1723524568243,-155.89280771,0.00013621,2]
[334739747,1723524568264,-155.89280771,0.00013637,2]
[334739748,1723524568284,-155.89280771,0.00013653,2]
[334739749,1723524568304,-200.0,0.00013673,2]
[334739750,1723524568325,-200.0,0.00013673,2]
[334739751,1723524568345,-200.0,0.00013673,2]
[334739752,1723524568365,-200.0,0.00013673,2]
[334739753,1723524568385,-3111.19491287,0.00013676,2]
[334739754,1723524568406,-1633.64058599,0.00013678,2]
[334739771,1723524632297,-273.37336231,9.9e-05,2]
[334739772,1723524632307,-24900.0,0.00012683,2]
[334739773,1723524632317,-300.0,0.00013677,2]
[334739774,1723524632327,-406.06394499,0.00013678,2]
[334739775,1723524632339,-20356.36818081,0.00013678,2]
[334739776,1723524632350,-7330.00292226,0.00013679,2]
[334739777,1723524632360,-6273.68280823,0.00013688,2]
[334739778,1723524632373,-1036.36184921,0.00013688,2]
[334739796,1723524638540,-170.34095355,0.00013678,2]
[334739798,1723524638551,-1151.23946683,0.00013688,2]
[334739822,1723524640627,-155.25531054,0.00013678,2]
[334739824,1723524640639,-9863.72318143,0.00013688,2]
[334739826,1723524640648,-3665.00146113,0.00013689,2]
[334739828,1723524640658,-2305.85482193,0.00013698,2]
[334739830,1723524640668,-501.82803804,0.00013698,2]
[334739832,1723524640677,-357.45676429,0.00013698,2]
[334739834,1723524640686,-502.11937178,0.00013698,2]
[334739836,1723524640696,-304.4694142,0.00013698,2]
[334739838,1723524640706,-240.9631775,0.00013698,2]
[334739841,1723524640715,-500.0,0.00013698,2]
[334739842,1723524640725,-500.0,0.00013698,2]
[334739845,1723524640735,-500.0,0.00013698,2]
[334739846,1723524640745,-200.35003005,0.00013698,2]
[334739848,1723524640755,-500.0,0.00013698,2]
[334739850,1723524640765,-500.0,0.00013698,2]
[334739852,1723524640774,-500.0,0.00013698,2]
[334739854,1723524640783,-500.0,0.00013698,2]
[334739855,1723524640793,-500.0,0.00013698,2]
[334739856,1723524640802,-500.0,0.00013698,2]
[334739857,1723524640811,-500.0,0.00013698,2]
[334739858,1723524640821,-622.54548251,0.00013698,2]
[334739859,1723524640831,-500.0,0.00013698,2]
[334739860,1723524640840,-500.0,0.00013698,2]
[334739861,1723524640850,-600.0,0.00013698,2]
[334739862,1723524640859,-500.0,0.00013698,2]
[334739863,1723524640868,-500.0,0.00013698,2]
[334739864,1723524640879,-500.0,0.00013698,2]
[334739865,1723524640889,-501.57825623,0.00013698,2]
[334739866,1723524640898,-500.0,0.00013698,2]
[334739867,1723524640907,-418.2527658,0.00013698,2]
[334739868,1723524640917,-500.0,0.00013698,2]
[334739869,1723524640926,-500.0,0.00013698,2]
[334739870,1723524640936,-509.60447188,0.00013698,2]
[334739871,1723524640948,-639.84689421,0.00013698,2]
[334739872,1723524640959,-500.0,0.00013698,2]
[334739873,1723524640969,-504.40007358,0.00013698,2]
[334739874,1723524640979,-500.99459913,0.00013698,2]
[334739875,1723524640996,-500.0,0.00013698,2]
[334739876,1723524641005,-500.87252512,0.00013698,2]
[334739877,1723524641017,-501.5547354,0.00013698,2]
[334739878,1723524641029,-500.0,0.00013698,2]
[334739879,1723524641040,-503.2564381,0.00013698,2]
[334739880,1723524641051,-500.0,0.00013698,2]
[334739881,1723524641062,-500.0,0.00013698,2]
[334739882,1723524641074,-501.7475152,0.00013698,2]
[334739883,1723524641084,-500.0,0.00013698,2]
[334739884,1723524641094,-501.09423351,0.00013698,2]
[334739885,1723524641103,-500.0,0.00013698,2]
[334739886,1723524641112,-500.0,0.00013698,2]
[334739887,1723524641122,-551.55922549,0.00013698,2]
[334739888,1723524641131,-500.0,0.00013698,2]
[334739889,1723524641141,-509.07463409,0.00013698,2]
[334739890,1723524641150,-500.0,0.00013698,2]
[334739891,1723524641159,-500.0,0.00013698,2]
[334739892,1723524641168,-632.19,0.00013698,2]
[334739893,1723524641178,-500.0,0.00013698,2]
[334739894,1723524641187,-504.70948886,0.00013698,2]
[334739895,1723524641196,-502.2632472,0.00013698,2]
[334739896,1723524641206,-500.0,0.00013698,2]
[334739897,1723524641216,-501.97427302,0.00013698,2]
[334739898,1723524641227,-500.0,0.00013698,2]
[334739899,1723524641239,-500.0,0.00013698,2]
[334739900,1723524641249,-500.0,0.00013698,2]
[334739901,1723524641258,-500.0,0.00013698,2]
[334739902,1723524641268,-500.0,0.00013698,2]
[334739903,1723524641278,-293.75168834,0.00013698,2]
[334739904,1723524641287,-500.0,0.00013698,2]
[334739905,1723524641296,-500.0,0.00013698,2]
[334739906,1723524641306,-500.0,0.00013698,2]
[334739907,1723524641315,-506.96510961,0.00013698,2]
[334739908,1723524641324,-586.86283865,0.00013698,2]
[334739909,1723524641334,-501.14777163,0.00013698,2]
[334739910,1723524641344,-500.0,0.00013698,2]
[334739911,1723524641354,-367.81216837,0.00013698,2]
[334739912,1723524641363,-503.03889964,0.00013698,2]
[334739913,1723524641372,-504.13398326,0.00013698,2]
[334739914,1723524641381,-509.00161292,0.00013698,2]
[334739915,1723524641391,-500.0,0.00013698,2]
[334739916,1723524641400,-508.41960553,0.00013698,2]
[334739917,1723524641411,-505.65787583,0.00013698,2]
[334739918,1723524641420,-712.4,0.00013698,2]
[334739919,1723524641430,-506.00298205,0.00013698,2]
[334739920,1723524641440,-500.0,0.00013698,2]
[334739921,1723524641451,-504.98930077,0.00013698,2]
[334739922,1723524641462,-500.0,0.00013698,2]
[334739923,1723524641471,-517.5851199,0.00013698,2]
[334739924,1723524641480,-500.0,0.00013698,2]
[334739925,1723524641492,-434.18530355,0.00013698,2]
[334739926,1723524641501,-501.47640999,0.00013698,2]
[334739927,1723524641513,-282.70644405,0.00013698,2]
[334739928,1723524641522,-500.0,0.00013698,2]
[334739929,1723524641531,-500.0,0.00013698,2]
[334739930,1723524641540,-507.85061605,0.00013698,2]
[334739931,1723524641550,-500.0,0.00013698,2]
[334739932,1723524641559,-201.28516139,0.00013698,2]
[334739933,1723524641568,-500.0,0.00013698,2]
[334739934,1723524641577,-500.0,0.00013698,2]
[334739935,1723524641586,-500.0,0.00013698,2]
[334739936,1723524641596,-500.0,0.00013698,2]
[334739937,1723524641605,-502.70542495,0.00013698,2]
[334739938,1723524641616,-500.0,0.00013698,2]
[334739939,1723524641625,-505.0491654,0.00013698,2]
[334739940,1723524641635,-507.27275818,0.00013698,2]
[334739941,1723524641644,-504.21018301,0.00013698,2]
[334739942,1723524641654,-500.0,0.00013698,2]
[334739943,1723524641663,-500.95482715,0.00013698,2]
[334739944,1723524641672,-153.36812041,0.00013698,2]
[334739945,1723524641681,-500.0,0.00013698,2]
[334739946,1723524641691,-500.0,0.00013698,2]
[334739947,1723524641700,-504.06326089,0.00013698,2]
[334739948,1723524641710,-530.69285422,0.00013698,2]
[334739949,1723524641720,-500.0,0.00013698,2]
[334739950,1723524641730,-500.0,0.00013698,2]
[334739951,1723524641742,-500.0,0.00013698,2]
[334739952,1723524641753,-503.02599088,0.00013698,2]
[334739953,1723524641762,-505.51759304,0.00013698,2]
[334739954,1723524641771,-563.57,0.00013698,2]
[334739955,1723524641781,-502.69048506,0.00013698,2]
[334739956,1723524641793,-500.0,0.00013698,2]
[334739957,1723524641804,-559.81,0.00013698,2]
[334739958,1723524641815,-605.11265353,0.00013698,2]
[334739959,1723524641825,-501.24271416,0.00013698,2]
[334739960,1723524641835,-500.0,0.00013698,2]
[334739961,1723524641846,-500.0,0.00013698,2]
[334739962,1723524641857,-500.0,0.00013698,2]
[334739963,1723524641867,-500.0,0.00013698,2]
[334739964,1723524641877,-512.20199397,0.00013698,2]
[334739965,1723524641886,-500.0,0.00013698,2]
[334739966,1723524641896,-500.0,0.00013698,2]
[334739967,1723524641905,-500.0,0.00013698,2]
[334739968,1723524641915,-500.0,0.00013698,2]
[334739969,1723524641924,-500.0,0.00013698,2]
[334739970,1723524641933,-500.0,0.00013698,2]
[334739971,1723524641942,-500.0,0.00013698,2]
[334739972,1723524641952,-500.0,0.00013698,2]
[334739973,1723524641961,-552.98306176,0.00013698,2]
[334739974,1723524641970,-500.0,0.00013698,2]
[334739975,1723524641979,-500.0,0.00013698,2]
[334739976,1723524641992,-561.35168058,0.00013698,2]
[334739977,1723524642003,-500.0,0.00013698,2]
[334739978,1723524642015,-500.0,0.00013698,2]
[334739979,1723524642025,-505.46445379,0.00013698,2]
[334739980,1723524642036,-771.55,0.00013698,2]
[334739981,1723524642047,-500.0,0.00013698,2]
[334739982,1723524642058,-500.0,0.00013698,2]
[334739983,1723524642070,-540.8,0.00013698,2]
[334739984,1723524642079,-500.0,0.00013698,2]
[334739985,1723524642089,-500.0,0.00013698,2]
[334739986,1723524642100,-561.77,0.00013698,2]
[334739987,1723524642111,-500.0,0.00013698,2]
[334739988,1723524642121,-500.0,0.00013698,2]
[334739989,1723524642133,-500.0,0.00013698,2]
[334739990,1723524642143,-511.05720352,0.00013698,2]
[334739991,1723524642153,-500.0,0.00013698,2]
[334739992,1723524642165,-500.0,0.00013698,2]
[334739993,1723524642175,-288.9447457,0.00013698,2]
[334739994,1723524642185,-500.0,0.00013698,2]
[334739995,1723524642196,-500.0,0.00013698,2]
[334739996,1723524642206,-500.0,0.00013698,2]
[334739997,1723524642216,-500.0,0.00013698,2]
[334739998,1723524642226,-505.5050666,0.00013698,2]
[334739999,1723524642239,-500.0,0.00013698,2]
[334740000,1723524642250,-500.0,0.00013698,2]
[334740001,1723524642260,-500.0,0.00013698,2]
[334740002,1723524642270,-500.0,0.00013698,2]
[334740003,1723524642279,-500.0,0.00013698,2]
[334740004,1723524642290,-500.0,0.00013698,2]
[334740005,1723524642301,-500.0,0.00013698,2]
[334740006,1723524642312,-500.0,0.00013698,2]
[334740007,1723524642323,-500.0,0.00013698,2]
[334740008,1723524642334,-291.27,0.00013698,2]
[334740009,1723524642345,-506.17321874,0.00013698,2]
[334740010,1723524642355,-500.0,0.00013698,2]
[334740011,1723524642367,-500.0,0.00013698,2]
[334740012,1723524642376,-505.6880995,0.00013698,2]
[334740013,1723524642386,-500.0,0.00013698,2]
[334740014,1723524642395,-500.0,0.00013698,2]
[334740015,1723524642405,-500.0,0.00013698,2]
[334740016,1723524642414,-506.0863685,0.00013698,2]
[334740017,1723524642425,-530.06,0.00013698,2]
[334740018,1723524642436,-826.85,0.00013698,2]
[334740019,1723524642447,-500.0,0.00013698,2]
[334740020,1723524642457,-500.0,0.00013698,2]
[334740021,1723524642466,-500.0,0.00013698,2]
[334740022,1723524642476,-500.0,0.00013698,2]
[334740023,1723524642488,-500.0,0.00013698,2]
[334740024,1723524642500,-500.0,0.00013698,2]
[334740025,1723524642511,-500.0,0.00013698,2]
[334740026,1723524642521,-500.0,0.00013698,2]
[334740027,1723524642533,-500.0,0.00013698,2]
[334740028,1723524642543,-621.77354407,0.00013698,2]
[334740029,1723524642553,-500.0,0.00013698,2]
[334740030,1723524642564,-500.0,0.00013698,2]
[334740031,1723524642574,-500.0,0.00013698,2]
[334740032,1723524642585,-500.0,0.00013698,2]
[334740033,1723524642596,-500.0,0.00013698,2]
[334740034,1723524642607,-500.0,0.00013698,2]
[334740035,1723524642619,-507.16041193,0.00013698,2]
[334740036,1723524642630,-686.15,0.00013698,2]
[334740037,1723524642642,-500.0,0.00013698,2]
[334740038,1723524642653,-500.0,0.00013698,2]
[334740039,1723524642664,-500.0,0.00013698,2]
[334740040,1723524642675,-505.99948325,0.00013698,2]
[334740041,1723524642684,-500.0,0.00013698,2]
[334740042,1723524642694,-500.0,0.00013698,2]
[334740043,1723524642704,-500.0,0.00013698,2]
[334740044,1723524642714,-586.74,0.00013698,2]
[334740046,1723524642724,-500.0,0.00013698,2]
[334740048,1723524642734,-500.0,0.00013698,2]
[334740049,1723524642746,-913.04,0.00013698,2]
[334740050,1723524642756,-503.30331675,0.00013698,2]
[334740051,1723524642765,-500.0,0.00013698,2]
[334740052,1723524642774,-897.0,0.00013698,2]
[334740053,1723524642783,-500.0,0.00013698,2]
[334740054,1723524642794,-500.0,0.00013698,2]
[334740056,1723524642804,-359.4979327,0.00013698,2]
[334740058,1723524642814,-500.0,0.00013698,2]
[334740060,1723524642823,-500.0,0.00013698,2]
[334740061,1723524642982,-500.0,0.00013698,2]
[334740062,1723524642995,-500.0,0.00013698,2]
[334740063,1723524643004,-500.0,0.00013698,2]
[334740064,1723524643013,-500.0,0.00013698,2]
[334740065,1723524643022,-2720.53,0.00013698,2]
[334740066,1723524643031,-500.0,0.00013698,2]
[334740067,1723524643042,-500.0,0.00013698,2]
[334740068,1723524643051,-604.44,0.00013698,2]
[334740069,1723524643060,-500.0,0.00013698,2]
[334740070,1723524643070,-500.0,0.00013698,2]
[334740071,1723524643080,-505.85991615,0.00013698,2]
[334740072,1723524643090,-5394.66,0.00013698,2]
[334740073,1723524643099,-709.66,0.00013698,2]
[334740074,1723524643108,-500.0,0.00013698,2]
[334740075,1723524643118,-547.17375942,0.00013698,2]
[334740076,1723524643127,-500.0,0.00013698,2]
[334740077,1723524643136,-1128.46,0.00013698,2]
[334740078,1723524643145,-500.0,0.00013698,2]
[334740079,1723524643154,-500.0,0.00013698,2]
[334740080,1723524643164,-500.0,0.00013698,2]
[334740081,1723524643173,-500.0,0.00013698,2]
[334740082,1723524643182,-500.0,0.00013698,2]
[334740083,1723524643191,-802.31,0.00013698,2]
[334740084,1723524643200,-500.0,0.00013698,2]
[334740085,1723524643209,-501.42185491,0.00013698,2]
[334740086,1723524643219,-500.0,0.00013698,2]
[334740087,1723524643228,-500.0,0.00013698,2]
[334740088,1723524643237,-882.67,0.00013698,2]
[334740089,1723524643248,-702.49,0.00013698,2]
[334740090,1723524643256,-500.0,0.00013698,2]
[334740091,1723524643266,-1086.87,0.00013698,2]
[334740092,1723524643276,-510.98804911,0.00013698,2]
[334740093,1723524643286,-500.0,0.00013698,2]
[334740094,1723524643295,-3855.79,0.00013698,2]
[334740095,1723524643306,-500.0,0.00013698,2]
[334740096,1723524643315,-1487.24367427,0.00013698,2]
[334740097,1723524643336,-312.17632573,0.00013698,2]
[334740098,1723524643347,-500.0,0.00013698,2]
[334740099,1723524643359,-500.0,0.00013698,2]
[334740100,1723524643369,-501.41158025,0.00013698,2]
[334740101,1723524643379,-3381.63,0.00013698,2]
[334740102,1723524643388,-1166.34,0.00013698,2]
[334740103,1723524643397,-1133.88,0.00013698,2]
[334740104,1723524643407,-503.78290479,0.00013698,2]
[334740105,1723524643416,-500.0,0.00013698,2]
[334740106,1723524643425,-507.20011329,0.00013698,2]
[334740107,1723524643434,-1092.49,0.00013698,2]
[334740108,1723524643444,-500.0,0.00013698,2]
[334740109,1723524643454,-1046.3,0.00013698,2]
[334740110,1723524643463,-505.71208401,0.00013698,2]
[334740111,1723524643473,-527.39,0.00013698,2]
[334740112,1723524643483,-500.0,0.00013698,2]
[334740113,1723524643493,-500.0,0.00013698,2]
[334740114,1723524643502,-500.0,0.00013698,2]
[334740115,1723524643511,-505.36064693,0.00013698,2]
[334740116,1723524643521,-853.22,0.00013698,2]
[334740117,1723524643530,-937.08,0.00013698,2]
[334740118,1723524643539,-940.01,0.00013698,2]
[334740119,1723524643549,-500.0,0.00013698,2]
[334740121,1723524643559,-862.58,0.00013698,2]
[334740123,1723524643568,-503.88429814,0.00013698,2]
[334740125,1723524643578,-1655.88,0.00013698,2]
[334740126,1723524643590,-500.0,0.00013698,2]
[334740127,1723524643600,-500.0,0.00013698,2]
[334740128,1723524643609,-500.0,0.00013698,2]
[334740129,1723524643619,-689.8,0.00013698,2]
[334740130,1723524643629,-500.0,0.00013698,2]
[334740131,1723524643638,-500.0,0.00013698,2]
[334740132,1723524643648,-553.76,0.00013698,2]
[334740133,1723524643657,-500.0,0.00013698,2]
[334740134,1723524643668,-500.0,0.00013698,2]
[334740135,1723524643677,-500.0,0.00013698,2]
[334740136,1723524643687,-1493.23,0.00013698,2]
[334740137,1723524643697,-560.92,0.00013698,2]
[334740138,1723524643706,-500.0,0.00013698,2]
[334740139,1723524643716,-504.932046,0.00013698,2]
[334740140,1723524643726,-500.0,0.00013698,2]
[334740141,1723524643736,-500.0,0.00013698,2]
[334740142,1723524643746,-509.30063614,0.00013698,2]
[334740143,1723524643755,-500.0,0.00013698,2]
[334740144,1723524643765,-644.48,0.00013698,2]
[334740145,1723524643775,-952.2,0.00013698,2]
[334740146,1723524643785,-500.0,0.00013698,2]
[334740147,1723524643794,-1138.54,0.00013698,2]
[334740148,1723524643804,-500.0,0.00013698,2]
[334740149,1723524643814,-500.0,0.00013698,2]
[334740151,1723524643823,-500.0,0.00013698,2]
[334740153,1723524643833,-500.0,0.00013698,2]
[334740155,1723524643843,-775.15,0.00013698,2]
[334740157,1723524643856,-647.23,0.00013698,2]
[334740159,1723524643866,-502.28690449,0.00013698,2]
[334740162,1723524643875,-662.45,0.00013698,2]
[334740164,1723524643886,-507.11683935,0.00013698,2]
[334740166,1723524643896,-1210.55,0.00013698,2]
[334740168,1723524643905,-500.0,0.00013698,2]
[334740170,1723524643915,-500.0,0.00013698,2]
[334740172,1723524643924,-500.0,0.00013698,2]
[334740174,1723524643934,-363.62833598,0.00013698,2]
[334740176,1723524643943,-598.30551426,0.00013698,2]
[334740178,1723524643953,-505.22362471,0.00013698,2]
[334740179,1723524643962,-500.0,0.00013698,2]
[334740180,1723524643973,-509.39277566,0.00013698,2]
[334740181,1723524643982,-1152.25,0.00013698,2]
[334740182,1723524643995,-537.09112232,0.00013698,2]
[334740183,1723524644004,-500.0,0.00013698,2]
[334740184,1723524644016,-224.96456749,0.00013698,2]
[334740185,1723524644025,-3262.0,0.00013698,2]
[334740186,1723524644035,-500.0,0.00013698,2]
[334740187,1723524644044,-500.0,0.00013698,2]
[334740188,1723524644053,-500.0,0.00013698,2]
[334740189,1723524644063,-712.4,0.00013698,2]
[334740190,1723524644074,-560.34,0.00013698,2]
[334740191,1723524644083,-970.04,0.00013698,2]
[334740192,1723524644092,-970.04,0.00013698,2]
[334740193,1723524644101,-257.1212263,0.00013698,2]
[334740194,1723524644110,-970.04,0.00013698,2]
[334740195,1723524644119,-970.04,0.00013698,2]
[334740196,1723524644128,-970.04,0.00013698,2]
[334740197,1723524644138,-970.04,0.00013698,2]
[334740198,1723524644149,-555.8683446,0.00013698,2]
[334740199,1723524644163,-414.1716554,0.00013698,2]
[334740200,1723524644173,-500.0,0.00013698,2]
[334740201,1723524644182,-970.04,0.00013698,2]
[334740202,1723524644193,-970.04,0.00013698,2]
[334740203,1723524644203,-970.04,0.00013698,2]
[334740204,1723524644213,-970.04,0.00013698,2]
[334740205,1723524644224,-970.04,0.00013698,2]
[334740206,1723524644234,-970.04,0.00013698,2]
[334740207,1723524644245,-970.04,0.00013698,2]
[334740208,1723524644254,-322.0514646,0.00013698,2]
[334740209,1723524644451,-177.9485354,0.00013698,2]
[334740210,1723524644462,-970.04,0.00013698,2]
[334740211,1723524644472,-970.04,0.00013698,2]
[334740212,1723524644482,-970.04,0.00013698,2]
[334740213,1723524644491,-500.0,0.00013698,2]
[334740214,1723524644509,-500.0,0.00013698,2]
[334740215,1723524644518,-505.29222451,0.00013698,2]
[334740216,1723524644527,-703.4057445,0.00013698,2]
[334740217,1723524645233,-546.8942555,0.00013698,2]
[334740218,1723524645243,-2655.5,0.00013698,2]
[334740219,1723524645252,-1533.73,0.00013698,2]
[334740220,1723524645261,-500.0,0.00013698,2]
[334740221,1723524645270,-505.81153135,0.00013698,2]
[334740222,1723524645279,-504.8575549,0.00013698,2]
[334740223,1723524645289,-500.0,0.00013698,2]
[334740224,1723524645299,-240.0,0.00013698,2]
[334740225,1723524645308,-500.0,0.00013698,2]
[334740226,1723524645317,-2005.0,0.00013698,2]
[334740227,1723524645327,-2005.0,0.00013698,2]
[334740228,1723524645336,-2005.0,0.00013698,2]
[334740229,1723524645346,-2005.0,0.00013698,2]
[334740230,1723524645355,-2005.0,0.00013698,2]
[334740231,1723524645366,-500.0,0.00013698,2]
[334740232,1723524645375,-2005.0,0.00013698,2]
[334740233,1723524645385,-2005.0,0.00013698,2]
[334740234,1723524645394,-2005.0,0.00013698,2]
[334740235,1723524645404,-2005.0,0.00013698,2]
[334740236,1723524645413,-2005.0,0.00013698,2]
[334740237,1723524645423,-795.63,0.00013698,2]
[334740238,1723524645433,-2005.0,0.00013698,2]
[334740239,1723524645443,-2005.0,0.00013698,2]
[334740240,1723524645452,-2005.0,0.00013698,2]
[334740241,1723524645462,-2005.0,0.00013698,2]
[334740242,1723524645472,-2005.0,0.00013698,2]
[334740243,1723524645483,-457.35905771,0.00013698,2]
[334740244,1723524645496,-500.0,0.00013698,2]
[334740245,1723524645507,-5014.67,0.00013698,2]
[334740246,1723524645519,-500.0,0.00013698,2]
[334740247,1723524645529,-764.18,0.00013698,2]
[334740248,1723524645539,-500.0,0.00013698,2]
[334740249,1723524645550,-5283.19,0.00013698,2]
[334740250,1723524645560,-500.0,0.00013698,2]
[334740251,1723524645570,-511.74447353,0.00013698,2]
[334740252,1723524645581,-500.0,0.00013698,2]
[334740253,1723524645590,-503.10998793,0.00013698,2]
[334740254,1723524645599,-559.34,0.00013698,2]
[334740255,1723524645609,-502.67557011,0.00013698,2]
[334740256,1723524645620,-500.0,0.00013698,2]
[334740257,1723524645631,-500.0,0.00013698,2]
[334740258,1723524645642,-500.0,0.00013698,2]
[334740259,1723524645654,-500.0,0.00013698,2]
[334740260,1723524645667,-500.0,0.00013698,2]
[334740261,1723524645676,-623.45,0.00013698,2]
[334740262,1723524645686,-582.24,0.00013698,2]
[334740263,1723524645695,-529.75997895,0.00013698,2]
[334740319,1723524646525,-273.37336231,9.9e-05,2]
[334740320,1723524646535,-305.30543198,0.00013685,2]
[334740326,1723524753269,500.0,0.00024,120]
[334740327,1723524754016,500.0,0.00024,120]
[334740328,1723524754790,500.0,0.00024,120]
[334740329,1723524755716,500.0,0.00024,120]
[334740330,1723524756501,500.0,0.00024,120]
[334740331,1723524757269,500.0,0.00024,120]
[334740332,1723524758018,500.0,0.00024,120]
[334740333,1723524758773,500.0,0.00024,120]
[334740334,1723524759581,500.0,0.00024,120]
[334740335,1723524760452,500.0,0.00024,120]
[334740336,1723524761128,500.0,0.00024,120]
[334740337,1723524762714,500.0,0.00024,120]
[334740338,1723524763467,500.0,0.00024,120]
[334740339,1723524764244,500.0,0.00024,120]
[334740340,1723524765003,500.0,0.00024,120]
[334740341,1723524765769,500.0,0.00024,120]
[334740342,1723524766525,500.0,0.00024,120]
[334740343,1723524767285,500.0,0.00024,120]
[334740344,1723524768033,500.0,0.00024,120]
[334740345,1723524768790,500.0,0.00024,120]
[334740346,1723524769554,539.87,0.00024,120]
[334740351,1723524835369,500.0,0.00024,120]
[334740376,1723525150773,5645.46510427,0.00024,120]
[334740410,1723525749158,-600.0,9.898e-05,2]
[334740411,1723525749183,-300.0,9.998e-05,2]